[Event "NK 2022"]
[Site "Groningen, Netherlands"]
[Date "2022.12.28"]
[Round "10.2"]
[White "L'Ami, Erwin"]
[Black "Pruijssers, Roeland"]
[Result "1-0"]
[TimeControl "40/90; 30 minutes + increment 30 seconds from start"]
[WhiteTitle "GM"]
[BlackTitle "GM"]
[BlackFideId "1013068"]
[WhiteElo "2627"]
[BlackElo "2538"]

1. d4 {[%clk 01:30:57]} {[%emt 00:00:02]} d5 {[%clk 01:30:53]} {[%emt
00:00:07]} 2. c4 {[%clk 01:31:11]} {[%emt 00:00:15]} dxc4 {[%clk 01:31:15]}
{[%emt 00:00:08]} 3. Nf3 {[%clk 01:31:00]} {[%emt 00:00:41]} Nf6 {[%clk
01:31:35]} {[%emt 00:00:10]} 4. e3 {[%clk 01:31:23]} {[%emt 00:00:07]} e6
{[%clk 01:31:42]} {[%emt 00:00:23]} 5. Bxc4 {[%clk 01:31:45]} {[%emt 00:00:08]}
c5 {[%clk 01:32:07]} {[%emt 00:00:05]} 6. O-O {[%clk 01:31:33]} {[%emt
00:00:42]} a6 {[%clk 01:32:24]} {[%emt 00:00:12]} 7. dxc5 {[%clk 01:30:49]}
{[%emt 00:01:15]} Bxc5 {[%clk 01:32:41]} {[%emt 00:00:13]} 8. Qxd8+ {[%clk
01:30:45]} {[%emt 00:00:34]} Kxd8 {[%clk 01:33:05]} {[%emt 00:00:06]} 9. Ne5
{[%clk 01:28:32]} {[%emt 00:02:43]} Ke7 {[%clk 01:33:27]} {[%emt 00:00:08]} 10.
Be2 {[%clk 01:28:55]} {[%emt 00:00:07]} Nbd7 {[%clk 01:33:12]} {[%emt
00:00:46]} 11. Nc4 {[%clk 01:25:47]} {[%emt 00:03:38]} a5 {[%clk 01:25:31]}
{[%emt 00:08:11]} 12. Bd2 {[%clk 01:19:50]} {[%emt 00:06:26]} b6 {[%clk
01:22:33]} {[%emt 00:03:28]} 13. Rc1 {[%clk 01:16:22]} {[%emt 00:03:58]} Ba6
{[%clk 01:12:27]} {[%emt 00:10:36]} 14. Kf1 {[%clk 01:14:10]} {[%emt 00:02:41]}
Rhd8 {[%clk 01:00:49]} {[%emt 00:12:08]} 15. Be1 {[%clk 01:10:09]} {[%emt
00:04:31]} Rac8 {[%clk 00:54:10]} {[%emt 00:07:09]} 16. Nbd2 {[%clk 01:08:00]}
{[%emt 00:02:38]} a4 {[%clk 00:49:39]} {[%emt 00:05:01]} 17. b3 {[%clk
01:00:54]} {[%emt 00:07:36]} a3 {[%clk 00:37:35]} {[%emt 00:12:34]} 18. Nb1
{[%clk 00:46:51]} {[%emt 00:14:32]} b5 {[%clk 00:36:23]} {[%emt 00:01:43]} 19.
Na5 {[%clk 00:37:14]} {[%emt 00:10:06]} Nd5 {[%clk 00:29:53]} {[%emt 00:07:00]}
20. Nc3 {[%clk 00:32:52]} {[%emt 00:04:52]} Nxc3 {[%clk 00:23:10]} {[%emt
00:07:13]} 21. Rxc3 {[%clk 00:31:50]} {[%emt 00:01:32]} b4 {[%clk 00:18:37]}
{[%emt 00:05:03]} 22. Rc2 {[%clk 00:26:38]} {[%emt 00:05:42]} Bxe2+ {[%clk
00:18:54]} {[%emt 00:00:13]} 23. Kxe2 {[%clk 00:27:00]} {[%emt 00:00:07]} Rc7
{[%clk 00:19:06]} {[%emt 00:00:18]} 24. Rac1 {[%clk 00:25:54]} {[%emt
00:01:36]} Rb8 {[%clk 00:18:21]} {[%emt 00:01:15]} 25. Nc4 {[%clk 00:25:12]}
{[%emt 00:01:12]} Rb5 {[%clk 00:16:51]} {[%emt 00:02:01]} 26. f3 {[%clk
00:23:40]} {[%emt 00:02:01]} f6 {[%clk 00:13:19]} {[%emt 00:04:02]} 27. Nd2
{[%clk 00:20:18]} {[%emt 00:03:52]} f5 {[%clk 00:12:21]} {[%emt 00:01:29]} 28.
Nc4 {[%clk 00:17:27]} {[%emt 00:03:21]} e5 {[%clk 00:08:02]} {[%emt 00:04:50]}
29. e4 {[%clk 00:14:45]} {[%emt 00:03:11]} fxe4 {[%clk 00:08:11]} {[%emt
00:00:20]} 30. fxe4 {[%clk 00:15:11]} {[%emt 00:00:04]} Bd4 {[%clk 00:06:55]}
{[%emt 00:01:47]} 31. Nxa3 {[%clk 00:14:04]} {[%emt 00:01:38]} Rxc2+ {[%clk
00:06:53]} {[%emt 00:00:32]} 32. Nxc2 {[%clk 00:14:26]} {[%emt 00:00:08]} Bc5
{[%clk 00:07:20]} {[%emt 00:00:04]} 33. Ne3 {[%clk 00:13:10]} {[%emt 00:01:46]}
Ke6 {[%clk 00:07:16]} {[%emt 00:00:34]} 34. Nd5 {[%clk 00:12:24]} {[%emt
00:01:16]} Rb7 {[%clk 00:07:27]} {[%emt 00:00:19]} 35. Rc4 {[%clk 00:11:31]}
{[%emt 00:01:23]} Ra7 {[%clk 00:07:46]} {[%emt 00:00:12]} 36. Rc2 {[%clk
00:11:54]} {[%emt 00:00:07]} Rb7 {[%clk 00:08:06]} {[%emt 00:00:10]} 37. g4
{[%clk 00:11:38]} {[%emt 00:00:46]} Bd6 {[%clk 00:04:08]} {[%emt 00:04:28]} 38.
g5 {[%clk 00:08:19]} {[%emt 00:03:48]} h6 {[%clk 00:03:35]} {[%emt 00:01:03]}
39. gxh6 {[%clk 00:05:16]} {[%emt 00:03:33]} gxh6 {[%clk 00:04:02]} {[%emt
00:00:03]} 40. Bd2 {[%clk 00:04:35]} {[%emt 00:01:10]} h5 {[%clk 00:01:48]}
{[%emt 00:02:44]} 41. Rc6 {[%clk 00:28:33]} {[%emt 00:06:32]} Nb8 {[%clk
00:31:29]} {[%emt 00:00:48]} 42. Rc8 {[%clk 00:23:16]} {[%emt 00:05:47]} Ra7
{[%clk 00:29:32]} {[%emt 00:02:26]} 43. Bxb4 {[%clk 00:20:50]} {[%emt
00:02:58]} Rxa2+ {[%clk 00:29:49]} {[%emt 00:00:13]} 44. Kd3 {[%clk 00:21:14]}
{[%emt 00:00:06]} Na6 {[%clk 00:28:16]} {[%emt 00:02:03]} 45. Bxd6 {[%clk
00:21:24]} {[%emt 00:00:21]} Kxd6 {[%clk 00:28:40]} {[%emt 00:00:07]} 46. b4
{[%clk 00:21:06]} {[%emt 00:00:48]} Rxh2 {[%clk 00:24:21]} {[%emt 00:04:49]} 47.
Ra8 {[%clk 00:17:51]} {[%emt 00:03:44]} Ra2 {[%clk 00:24:04]} {[%emt 00:00:47]}
48. Rh8 {[%clk 00:18:15]} {[%emt 00:00:06]} Nc7 {[%clk 00:17:31]} {[%emt
00:07:04]} 49. Nxc7 {[%clk 00:10:32]} {[%emt 00:08:13]} Kxc7 {[%clk 00:17:54]}
{[%emt 00:00:08]} 50. Rxh5 {[%clk 00:10:55]} {[%emt 00:00:06]} Kd6 {[%clk
00:16:52]} {[%emt 00:01:32]} 51. Rh6+ {[%clk 00:11:01]} {[%emt 00:00:23]} Kd7
{[%clk 00:17:17]} {[%emt 00:00:06]} 52. Kc4 {[%clk 00:11:15]} {[%emt 00:00:15]}
Rd2 {[%clk 00:15:34]} {[%emt 00:02:12]} 53. Kc5 {[%clk 00:11:11]} {[%emt
00:00:35]} Rd4 {[%clk 00:15:57]} {[%emt 00:00:07]} 54. Rh4 {[%clk 00:11:27]}
{[%emt 00:00:13]} Kc7 {[%clk 00:09:09]} {[%emt 00:07:19]} 55. b5 {[%clk
00:11:17]} {[%emt 00:00:39]} Kb7 {[%clk 00:09:31]} {[%emt 00:00:09]} 56. b6
{[%clk 00:09:50]} {[%emt 00:01:57]} Rd7 {[%clk 00:00:34]} {[%emt 00:09:27]} 57.
Rh5 {[%clk 00:09:12]} {[%emt 00:01:08]} Re7 {[%clk 00:00:58]} {[%emt 00:00:07]}
58. Rh6 {[%clk 00:09:26]} {[%emt 00:00:16]} Rd7 {[%clk 00:00:49]} {[%emt
00:00:38]} 59. Rd6 {[%clk 00:09:43]} {[%emt 00:00:15]} Rh7 {[%clk 00:01:09]}
{[%emt 00:00:10]} 60. Re6 {[%clk 00:10:02]} {[%emt 00:00:11]} Rh5 {[%clk
00:01:34]} {[%emt 00:00:05]} 61. Re7+ {[%clk 00:09:58]} {[%emt 00:00:34]} Kb8
{[%clk 00:01:35]} {[%emt 00:00:29]} 62. Kc6 {[%clk 00:10:21]} {[%emt 00:00:07]}
Rh6+ {[%clk 00:01:59]} {[%emt 00:00:06]} 63. Kb5 {[%clk 00:10:48]} {[%emt
00:00:04]} Rh1 {[%clk 00:01:52]} {[%emt 00:00:36]} 64. Rxe5 {[%clk 00:11:02]}
{[%emt 00:00:17]} Rb1+ {[%clk 00:02:16]} {[%emt 00:00:06]} 65. Kc6 {[%clk
00:11:27]} {[%emt 00:00:05]} Rb2 {[%clk 00:02:41]} {[%emt 00:00:05]} 66. Re8#
{[%emt 00:00:05]} 1-0

[Event "NK 2022"]
[Site "Groningen, Netherlands"]
[Date "2022.12.28"]
[Round "11.1"]
[White "Warmerdam, Max"]
[Black "Kevlishvili, Robby"]
[Result "1/2-1/2"]
[TimeControl "40/90; 30 minutes + increment 30 seconds from start"]
[WhiteTitle "GM"]
[BlackTitle "GM"]
[WhiteFideId "1048104"]
[BlackFideId "1040634"]
[WhiteElo "2619"]
[BlackElo "2530"]

1. e4 {[%clk 00:25:19]} {[%emt 00:00:01]} e5 {[%clk 00:25:16]} {[%emt
00:00:05]} 2. Nf3 {[%clk 00:25:28]} {[%emt 00:00:01]} Nc6 {[%clk 00:25:24]}
{[%emt 00:00:02]} 3. Bc4 {[%clk 00:25:36]} {[%emt 00:00:01]} Bc5 {[%clk
00:25:32]} {[%emt 00:00:02]} 4. c3 {[%clk 00:25:45]} {[%emt 00:00:01]} Nf6
{[%clk 00:25:38]} {[%emt 00:00:04]} 5. d4 {[%clk 00:25:54]} {[%emt 00:00:01]}
exd4 {[%clk 00:25:44]} {[%emt 00:00:04]} 6. e5 {[%clk 00:26:02]} {[%emt
00:00:01]} d5 {[%clk 00:25:48]} {[%emt 00:00:05]} 7. Be2 {[%clk 00:26:11]}
{[%emt 00:00:02]} Ne4 {[%clk 00:25:45]} {[%emt 00:00:13]} 8. cxd4 {[%clk
00:26:19]} {[%emt 00:00:02]} Bb4+ {[%clk 00:25:40]} {[%emt 00:00:16]} 9. Bd2
{[%clk 00:26:28]} {[%emt 00:00:01]} Nxd2 {[%clk 00:25:43]} {[%emt 00:00:07]} 10.
Nbxd2 {[%clk 00:26:36]} {[%emt 00:00:02]} O-O {[%clk 00:25:42]} {[%emt
00:00:11]} 11. O-O {[%clk 00:24:56]} {[%emt 00:01:50]} f6 {[%clk 00:25:23]}
{[%emt 00:00:29]} 12. a3 {[%clk 00:25:05]} {[%emt 00:00:01]} Ba5 {[%clk
00:23:56]} {[%emt 00:01:37]} 13. Bb5 {[%clk 00:25:13]} {[%emt 00:00:02]} Ne7
{[%clk 00:23:42]} {[%emt 00:00:23]} 14. Bd3 {[%clk 00:24:45]} {[%emt 00:00:36]}
Bf5 {[%clk 00:23:19]} {[%emt 00:00:36]} 15. Qc2 {[%clk 00:24:22]} {[%emt
00:00:32]} fxe5 {[%clk 00:23:11]} {[%emt 00:00:18]} 16. Nxe5 {[%clk 00:24:15]}
{[%emt 00:00:17]} c6 {[%clk 00:22:46]} {[%emt 00:00:34]} 17. Ndf3 {[%clk
00:23:30]} {[%emt 00:00:55]} Qd6 {[%clk 00:22:44]} {[%emt 00:00:12]} 18. Rad1
{[%clk 00:22:23]} {[%emt 00:01:16]} Rae8 {[%clk 00:22:34]} {[%emt 00:00:20]} 19.
b4 {[%clk 00:22:04]} {[%emt 00:00:30]} Bb6 {[%clk 00:22:09]} {[%emt 00:00:35]}
20. Rfe1 {[%clk 00:21:24]} {[%emt 00:00:50]} Bxd3 {[%clk 00:22:09]} {[%emt
00:00:10]} 21. Rxd3 {[%clk 00:21:25]} {[%emt 00:00:09]} Nf5 {[%clk 00:22:04]}
{[%emt 00:00:15]} 22. Qd2 {[%clk 00:21:13]} {[%emt 00:00:22]} Qh6 {[%clk
00:18:52]} {[%emt 00:03:22]} 23. Qxh6 {[%clk 00:18:59]} {[%emt 00:02:24]} Nxh6
{[%clk 00:19:00]} {[%emt 00:00:02]} 24. g3 {[%emt 00:01:05]} Nf5 {[%clk
00:18:12]} 25. Kg2 {[%clk 00:18:59]} {[%emt 00:00:13]} Nd6 {[%clk 00:17:48]}
{[%emt 00:00:35]} 26. a4 {[%clk 00:17:45]} {[%emt 00:01:24]} Ne4 {[%clk
00:16:10]} {[%emt 00:01:47]} 27. Re2 {[%clk 00:16:39]} {[%emt 00:01:15]} Bc7
{[%clk 00:15:43]} {[%emt 00:00:37]} 28. Rde3 {[%clk 00:13:38]} {[%emt
00:03:11]} Bd6 {[%clk 00:14:31]} {[%emt 00:01:22]} 29. Nd3 {[%clk 00:12:38]}
{[%emt 00:01:10]} a5 {[%clk 00:13:13]} {[%emt 00:01:29]} 30. bxa5 {[%clk
00:12:46]} {[%emt 00:00:02]} Ra8 {[%clk 00:13:21]} {[%emt 00:00:02]} 31. Rb2
{[%clk 00:12:54]} Rxa5 {[%clk 00:13:20]} {[%emt 00:00:12]} 32. Rxb7 {[%clk
00:13:02]} {[%emt 00:00:02]} Rxa4 {[%clk 00:13:28]} {[%emt 00:00:02]} 33. Rb6
{[%clk 00:13:00]} {[%emt 00:00:12]} Rc4 {[%clk 00:13:22]} {[%emt 00:00:16]} 34.
Re2 {[%clk 00:12:29]} {[%emt 00:00:41]} h6 {[%clk 00:11:03]} {[%emt 00:02:29]}
35. Nde5 {[%clk 00:10:05]} {[%emt 00:02:33]} Bxe5 {[%clk 00:11:03]} {[%emt
00:00:11]} 36. Nxe5 {[%clk 00:10:14]} {[%emt 00:00:02]} Rxd4 {[%clk 00:11:02]}
{[%emt 00:00:10]} 37. Rxc6 {[%clk 00:10:16]} {[%emt 00:00:07]} Kh7 {[%clk
00:10:06]} {[%emt 00:01:06]} 38. Rc7 {[%clk 00:09:36]} {[%emt 00:00:51]} Re8
{[%clk 00:09:14]} {[%emt 00:01:01]} 39. Nf3 {[%clk 00:09:20]} {[%emt 00:00:26]}
Rd3 {[%clk 00:08:44]} {[%emt 00:00:40]} 40. Ra2 {[%clk 00:08:37]} {[%emt
00:00:54]} Rf8 {[%clk 00:07:48]} {[%emt 00:01:06]} 41. Ne5 {[%clk 00:08:34]}
{[%emt 00:00:13]} Rd2 {[%clk 00:07:51]} {[%emt 00:00:08]} 42. Rxd2 {[%clk
00:08:41]} {[%emt 00:00:03]} Nxd2 {[%clk 00:07:59]} {[%emt 00:00:02]} 43. Nd3
{[%clk 00:07:28]} {[%emt 00:01:23]} Ne4 {[%clk 00:04:24]} {[%emt 00:03:45]} 44.
Nf4 {[%clk 00:07:33]} {[%emt 00:00:05]} Kg8 {[%clk 00:04:18]} {[%emt 00:00:16]}
45. f3 {[%clk 00:07:19]} {[%emt 00:00:24]} Nf6 {[%clk 00:04:21]} {[%emt
00:00:07]} 46. Ne6 {[%clk 00:07:10]} {[%emt 00:00:19]} Rf7 {[%clk 00:04:28]}
{[%emt 00:00:03]} 47. Rc8+ {[%clk 00:07:19]} {[%emt 00:00:02]} Kh7 {[%clk
00:04:37]} 48. h4 {[%clk 00:07:23]} {[%emt 00:00:06]} Ra7 {[%clk 00:03:33]}
{[%emt 00:01:15]} 49. g4 {[%clk 00:07:17]} {[%emt 00:00:16]} Kg6 {[%clk
00:03:36]} {[%emt 00:00:07]} 50. Rf8 {[%clk 00:06:43]} {[%emt 00:00:43]} Re7
{[%clk 00:02:57]} {[%emt 00:00:49]} 51. Nd4 {[%clk 00:05:18]} {[%emt 00:01:35]}
h5 {[%clk 00:02:10]} {[%emt 00:00:57]} 52. g5 {[%clk 00:05:21]} {[%emt
00:00:08]} Re8 {[%clk 00:02:19]} {[%emt 00:00:02]} 53. Rxe8 {[%clk 00:05:22]}
{[%emt 00:00:09]} Nxe8 {[%clk 00:02:27]} {[%emt 00:00:02]} 54. Kg3 {[%clk
00:05:28]} {[%emt 00:00:04]} Nd6 {[%clk 00:02:22]} {[%emt 00:00:16]} 55. Kf4
{[%clk 00:05:23]} {[%emt 00:00:14]} Nc4 {[%clk 00:02:26]} {[%emt 00:00:06]} 56.
Kg3 {[%clk 00:03:59]} {[%emt 00:01:34]} Nd6 {[%clk 00:02:15]} {[%emt 00:00:20]}
57. Kf4 {[%clk 00:03:28]} {[%emt 00:00:41]} Nc4 {[%clk 00:02:24]} {[%emt
00:00:02]} 58. Kg3 {[%clk 00:03:16]} {[%emt 00:00:22]} Ne3 {[%clk 00:02:22]}
{[%emt 00:00:11]} 59. Kf4 {[%clk 00:03:20]} {[%emt 00:00:06]} Ng2+ {[%clk
00:02:30]} {[%emt 00:00:02]} 60. Kg3 {[%clk 00:03:29]} {[%emt 00:00:01]} Ne3
{[%clk 00:02:39]} {[%emt 00:00:01]} 1/2-1/2